[Event "*** Titled Tuesday Blitz"]
[Site "Chess.com"]
[Date "2019.10.01"]
[Round "2"]
[White "googlegoom"]
[Black "JakubPulpan"]
[Result "0-1"]
[WhiteElo "2498"]
[BlackElo "2734"]
[TimeControl "180+2"]
[EndTime "13:25:10 PDT"]
[Termination "JakubPulpan won by checkmate"]

1. Nf3 {[%clk 0:02:59.7]} 1... Nf6 {[%clk 0:02:58.7]} 2. b3 {[%clk 0:03:00.7]}
2... c5 {[%clk 0:02:55.4]} 3. Bb2 {[%clk 0:03:01.8]} 3... Nc6 {[%clk 0:02:56.9]}
4. e3 {[%clk 0:03:03]} 4... d6 {[%clk 0:02:58.3]} 5. d4 {[%clk 0:03:03.3]} 5...
cxd4 {[%clk 0:02:58.9]} 6. Nxd4 {[%clk 0:03:04.6]} 6... g6 {[%clk 0:02:58.5]} 7.
Be2 {[%clk 0:03:05.6]} 7... Bg7 {[%clk 0:02:52.3]} 8. O-O {[%clk 0:03:06.9]}
8... O-O {[%clk 0:02:51.9]} 9. c4 {[%clk 0:03:08.1]} 9... Qa5 {[%clk 0:02:50.9]}
10. a3 {[%clk 0:03:07.8]} 10... Bd7 {[%clk 0:02:41.3]} 11. Nd2 {[%clk
0:03:04.8]} 11... Rac8 {[%clk 0:02:40.1]} 12. b4 {[%clk 0:03:01.7]} 12... Qc7
{[%clk 0:02:38.9]} 13. Rc1 {[%clk 0:03:01.5]} 13... a6 {[%clk 0:02:38.2]} 14.
Qb3 {[%clk 0:02:59.5]} 14... Qb6 {[%clk 0:02:34.3]} 15. Qa2 {[%clk 0:02:53]}
15... Rfe8 {[%clk 0:02:24.4]} 16. N2b3 {[%clk 0:02:40.8]} 16... Ne5 {[%clk
0:02:14.8]} 17. c5 {[%clk 0:02:35.1]} 17... dxc5 {[%clk 0:02:11.4]} 18. Nxc5
{[%clk 0:02:36.1]} 18... Nc6 {[%clk 0:02:08.8]} 19. Qa1 {[%clk 0:02:25.7]} 19...
e5 {[%clk 0:02:04.5]} 20. Nxd7 {[%clk 0:02:24.6]} 20... Nxd7 {[%clk 0:01:59.4]}
21. Nxc6 {[%clk 0:02:17.3]} 21... Rxc6 {[%clk 0:02:01.3]} 22. Rxc6 {[%clk
0:02:15.9]} 22... Qxc6 {[%clk 0:02:03.2]} 23. Rc1 {[%clk 0:02:16.9]} 23... Qb6
{[%clk 0:02:03.6]} 24. Rd1 {[%clk 0:02:12.1]} 24... Nf8 {[%clk 0:02:02.1]} 25.
g3 {[%clk 0:02:08.1]} 25... h5 {[%clk 0:01:54.4]} 26. h4 {[%clk 0:02:08.7]}
26... a5 {[%clk 0:01:52.1]} 27. b5 {[%clk 0:02:09.1]} 27... Qc5 {[%clk
0:01:34.7]} 28. a4 {[%clk 0:02:09.2]} 28... Ne6 {[%clk 0:01:34.6]} 29. Bf3
{[%clk 0:02:03.8]} 29... e4 {[%clk 0:01:32.7]} 30. Bxe4 {[%clk 0:01:58.7]} 30...
Bxb2 {[%clk 0:01:33.8]} 31. Qxb2 {[%clk 0:01:59.6]} 31... b6 {[%clk 0:01:35.5]}
32. Bc6 {[%clk 0:01:53.2]} 32... Rd8 {[%clk 0:01:34.2]} 33. Rxd8+ {[%clk
0:01:49.7]} 33... Nxd8 {[%clk 0:01:36.1]} 34. Qf6 {[%clk 0:01:48.8]} 34... Ne6
{[%clk 0:01:29.4]} 35. e4 {[%clk 0:01:49.5]} 35... Qd4 {[%clk 0:01:22.4]} 36.
Qe7 {[%clk 0:01:42.7]} 36... Qc5 {[%clk 0:01:11.2]} 37. Qe8+ {[%clk 0:01:38.4]}
37... Qf8 {[%clk 0:01:11.5]} 38. Qd7 {[%clk 0:01:31.6]} 38... Nc5 {[%clk
0:00:43.8]} 39. Qc7 {[%clk 0:01:31.8]} 39... Nxa4 {[%clk 0:00:44.2]} 40. Bd5
{[%clk 0:01:32.2]} 40... Qe8 {[%clk 0:00:33.7]} 41. Kg2 {[%clk 0:01:19.8]} 41...
Qf8 {[%clk 0:00:14.3]} 42. e5 {[%clk 0:01:07.4]} 42... Qe8 {[%clk 0:00:14.4]}
43. Qc2 {[%clk 0:01:04.9]} 43... Qxe5 {[%clk 0:00:09.6]} 44. Qxg6+ {[%clk
0:01:05.6]} 44... Qg7 {[%clk 0:00:11]} 45. Qxh5 {[%clk 0:00:42.9]} 45... Nc5
{[%clk 0:00:09.6]} 46. Qf5 {[%clk 0:00:30.2]} 46... a4 {[%clk 0:00:07.5]} 47. h5
{[%clk 0:00:20.3]} 47... a3 {[%clk 0:00:05.3]} 48. h6 {[%clk 0:00:21.4]} 48...
Qf8 {[%clk 0:00:05.7]} 49. Qg5+ {[%clk 0:00:16.1]} 49... Kh7 {[%clk 0:00:06.1]}
50. Qf6 {[%clk 0:00:06.6]} 50... Qxh6 {[%clk 0:00:04.1]} 51. Qxf7+ {[%clk
0:00:07.6]} 51... Qg7 {[%clk 0:00:06]} 52. Qh5+ {[%clk 0:00:08.3]} 52... Qh6
{[%clk 0:00:07.1]} 53. Qf7+ {[%clk 0:00:09.1]} 53... Qg7 {[%clk 0:00:08.5]} 54.
Qf5+ {[%clk 0:00:10.1]} 54... Qg6 {[%clk 0:00:09.5]} 55. Qc8 {[%clk 0:00:08.6]}
55... Kh6 {[%clk 0:00:09.5]} 56. Qc7 {[%clk 0:00:08.6]} 56... Ne6 {[%clk
0:00:05.8]} 57. Qe5 {[%clk 0:00:07.3]} 57... Nc5 {[%clk 0:00:06.3]} 58. Qe3+
{[%clk 0:00:08]} 58... Qg5 {[%clk 0:00:07.2]} 59. Qxa3 {[%clk 0:00:08.5]} 59...
Qxd5+ {[%clk 0:00:09.1]} 60. Kh2 {[%clk 0:00:08.9]} 60... Qh5+ {[%clk 0:00:10]}
61. Kg2 {[%clk 0:00:09.7]} 61... Qd5+ {[%clk 0:00:11.4]} 62. Kh2 {[%clk
0:00:10.9]} 62... Ne4 {[%clk 0:00:12.5]} 63. Qe3+ {[%clk 0:00:10.8]} 63... Ng5
{[%clk 0:00:09.6]} 64. Qxb6+ {[%clk 0:00:11.7]} 64... Kh5 {[%clk 0:00:11.5]} 65.
Qf6 {[%clk 0:00:05.2]} 65... Nf3+ {[%clk 0:00:13]} 66. Kg2 {[%clk 0:00:06.7]}
66... Nh4+ {[%clk 0:00:12.2]} 67. Kf1 {[%clk 0:00:06.9]} 67... Qd1# {[%clk
0:00:13.4]} 0-1

[Event "*** Titled Tuesday Blitz"]
[Site "Chess.com"]
[Date "2019.10.01"]
[Round "2"]
[White "731291"]
[Black "ChessBitl"]
[Result "1-0"]
[WhiteElo "2631"]
[BlackElo "2323"]
[TimeControl "180+2"]
[EndTime "13:25:22 PDT"]
[Termination "731291 won on time"]

1. d4 {[%clk 0:03:01.9]} 1... d5 {[%clk 0:02:55.3]} 2. c4 {[%clk 0:03:02.5]}
2... dxc4 {[%clk 0:02:56.2]} 3. e3 {[%clk 0:03:02.8]} 3... Nf6 {[%clk
0:02:56.7]} 4. Bxc4 {[%clk 0:03:03.4]} 4... e6 {[%clk 0:02:58]} 5. Nf3 {[%clk
0:03:03.8]} 5... a6 {[%clk 0:02:59.5]} 6. O-O {[%clk 0:03:02]} 6... c5 {[%clk
0:03:00.9]} 7. dxc5 {[%clk 0:03:02]} 7... Qxd1 {[%clk 0:03:00.9]} 8. Rxd1 {[%clk
0:03:03.9]} 8... Bxc5 {[%clk 0:03:02.1]} 9. a3 {[%clk 0:03:04.8]} 9... b5 {[%clk
0:03:01.8]} 10. Be2 {[%clk 0:03:05]} 10... Bb7 {[%clk 0:03:03.2]} 11. b4 {[%clk
0:03:05.3]} 11... Be7 {[%clk 0:03:01.9]} 12. Bb2 {[%clk 0:03:05.4]} 12... Nbd7
{[%clk 0:03:03.5]} 13. Nbd2 {[%clk 0:03:02.3]} 13... Rc8 {[%clk 0:03:04.2]} 14.
Nb3 {[%clk 0:03:00.2]} 14... O-O {[%clk 0:03:04.7]} 15. Nfd4 {[%clk 0:02:58.1]}
15... Nb6 {[%clk 0:02:58]} 16. Na5 {[%clk 0:02:52]} 16... Ba8 {[%clk 0:02:56.8]}
17. Rac1 {[%clk 0:02:51.1]} 17... Ne4 {[%clk 0:02:48.3]} 18. Nac6 {[%clk
0:02:48.3]} 18... Bf6 {[%clk 0:02:44.2]} 19. Bf3 {[%clk 0:02:24.6]} 19... Ng5
{[%clk 0:02:22.9]} 20. Ba1 {[%clk 0:02:06.6]} 20... Nxf3+ {[%clk 0:02:21.3]} 21.
gxf3 {[%clk 0:02:08.5]} 21... Nc4 {[%clk 0:02:16.4]} 22. Na5 {[%clk 0:02:02.2]}
22... Nxa5 {[%clk 0:02:14.8]} 23. bxa5 {[%clk 0:02:02.9]} 23... Bd5 {[%clk
0:02:16]} 24. Kg2 {[%clk 0:01:53.2]} 24... Rfd8 {[%clk 0:02:10]} 25. Bc3 {[%clk
0:01:44.7]} 25... Kf8 {[%clk 0:01:56.6]} 26. Bb4+ {[%clk 0:01:45.6]} 26... Ke8
{[%clk 0:01:57.7]} 27. Kg3 {[%clk 0:01:47]} 27... g6 {[%clk 0:01:54.9]} 28. f4
{[%clk 0:01:48.1]} 28... Bxd4 {[%clk 0:01:35.1]} 29. Rxc8 {[%clk 0:01:43]} 29...
Rxc8 {[%clk 0:01:36.2]} 30. Rxd4 {[%clk 0:01:44.9]} 30... Rc4 {[%clk 0:01:33.9]}
31. Rd2 {[%clk 0:01:45.2]} 31... f6 {[%clk 0:01:29.8]} 32. f3 {[%clk 0:01:45.9]}
32... f5 {[%clk 0:01:27.1]} 33. Rf2 {[%clk 0:01:41.2]} 33... Kf7 {[%clk
0:01:26.6]} 34. Kh4 {[%clk 0:01:41.1]} 34... h6 {[%clk 0:01:25.3]} 35. Kg3
{[%clk 0:01:43]} 35... g5 {[%clk 0:01:25.4]} 36. fxg5 {[%clk 0:01:41.4]} 36...
hxg5 {[%clk 0:01:25.6]} 37. Rd2 {[%clk 0:01:43.3]} 37... Kg6 {[%clk 0:01:24.7]}
38. Be7 {[%clk 0:01:42.3]} 38... Rc3 {[%clk 0:01:22.5]} 39. Kf2 {[%clk
0:01:40.8]} 39... Rb3 {[%clk 0:01:14.1]} 40. Bb4 {[%clk 0:01:37.7]} 40... Kf7
{[%clk 0:01:10.5]} 41. Rc2 {[%clk 0:01:38.3]} 41... Kg6 {[%clk 0:01:08.3]} 42.
Rc7 {[%clk 0:01:35.9]} 42... f4 {[%clk 0:01:06.8]} 43. e4 {[%clk 0:01:19.4]}
43... Bc4 {[%clk 0:01:07.2]} 44. Rc6 {[%clk 0:01:20.5]} 44... Rb2+ {[%clk
0:01:06.6]} 45. Kg1 {[%clk 0:01:20.4]} 45... Rb1+ {[%clk 0:01:07.1]} 46. Kf2
{[%clk 0:01:21.2]} 46... Rb2+ {[%clk 0:01:08.5]} 47. Kg1 {[%clk 0:01:22.2]}
47... g4 {[%clk 0:00:53.1]} 48. fxg4 {[%clk 0:01:22.5]} 48... f3 {[%clk
0:00:53.6]} 49. Bc5 {[%clk 0:01:24]} 49... Rg2+ {[%clk 0:00:51.2]} 50. Kh1
{[%clk 0:01:24.5]} 50... Re2 {[%clk 0:00:45.7]} 51. Kg1 {[%clk 0:01:24.2]} 51...
Rg2+ {[%clk 0:00:45]} 52. Kh1 {[%clk 0:01:25.2]} 52... Rxg4 {[%clk 0:00:45.7]}
53. Rxa6 {[%clk 0:01:21.7]} 53... b4 {[%clk 0:00:39]} 54. Ra8 {[%clk 0:00:59.7]}
54... Kf7 {[%clk 0:00:32.3]} 55. axb4 {[%clk 0:00:57.6]} 55... Rxe4 {[%clk
0:00:31.1]} 56. h3 {[%clk 0:00:53.8]} 56... Re2 {[%clk 0:00:30.6]} 57. Rf8+
{[%clk 0:00:51]} 57... Kg7 {[%clk 0:00:31.1]} 58. Kg1 {[%clk 0:00:44.2]} 58...
Rg2+ {[%clk 0:00:31.2]} 59. Kh1 {[%clk 0:00:45.2]} 59... Re2 {[%clk 0:00:32.1]}
60. Rf4 {[%clk 0:00:45.1]} 60... Bd5 {[%clk 0:00:31.7]} 61. Kg1 {[%clk
0:00:46.5]} 61... Ra2 {[%clk 0:00:26.6]} 62. Bb6 {[%clk 0:00:42.3]} 62... Kg6
{[%clk 0:00:26.9]} 63. Bd4 {[%clk 0:00:39.5]} 63... Rg2+ {[%clk 0:00:27.5]} 64.
Kf1 {[%clk 0:00:40.1]} 64... Rd2 {[%clk 0:00:23.3]} 65. Ke1 {[%clk 0:00:36]}
65... Re2+ {[%clk 0:00:21.9]} 66. Kf1 {[%clk 0:00:36.8]} 66... e5 {[%clk
0:00:21.4]} 67. Rg4+ {[%clk 0:00:35.7]} 67... Kf5 {[%clk 0:00:22.9]} 68. Bc5
{[%clk 0:00:34.8]} 68... e4 {[%clk 0:00:23.1]} 69. a6 {[%clk 0:00:30.3]} 69...
Bc4 {[%clk 0:00:23.9]} 70. a7 {[%clk 0:00:27.8]} 70... Rg2+ {[%clk 0:00:21.8]}
71. Ke1 {[%clk 0:00:28.9]} 71... Rxg4 {[%clk 0:00:19.9]} 72. hxg4+ {[%clk
0:00:30.8]} 72... Kxg4 {[%clk 0:00:20.2]} 73. a8=Q {[%clk 0:00:32.2]} 73... Kf4
{[%clk 0:00:16.9]} 74. Qf8+ {[%clk 0:00:32.7]} 1-0

[Event "*** Titled Tuesday Blitz"]
[Site "Chess.com"]
[Date "2019.10.01"]
[Round "2"]
[White "ural58"]
[Black "alishersuleymenov"]
[Result "0-1"]
[WhiteElo "2348"]
[BlackElo "2703"]
[TimeControl "180+2"]
[EndTime "13:25:23 PDT"]
[Termination "alishersuleymenov won by resignation"]

1. Nc3 {[%clk 0:03:00.3]} 1... Nf6 {[%clk 0:02:56.5]} 2. e4 {[%clk 0:02:59.4]}
2... d6 {[%clk 0:02:57.9]} 3. d4 {[%clk 0:02:55.4]} 3... g6 {[%clk 0:02:59]} 4.
h4 {[%clk 0:02:51.5]} 4... Bg7 {[%clk 0:02:57.8]} 5. h5 {[%clk 0:02:51.6]} 5...
Nxh5 {[%clk 0:02:57.7]} 6. Bc4 {[%clk 0:02:50.9]} 6... Nc6 {[%clk 0:02:51.1]} 7.
Rxh5 {[%clk 0:02:48.6]} 7... gxh5 {[%clk 0:02:51.2]} 8. Qxh5 {[%clk 0:02:49.6]}
8... e6 {[%clk 0:02:49.9]} 9. Bg5 {[%clk 0:02:50.4]} 9... Bf6 {[%clk 0:02:47.7]}
10. Nf3 {[%clk 0:02:49.7]} 10... h6 {[%clk 0:02:01.9]} 11. Be3 {[%clk
0:02:44.1]} 11... Qe7 {[%clk 0:01:51.6]} 12. O-O-O {[%clk 0:02:29.8]} 12... Bd7
{[%clk 0:01:44.2]} 13. e5 {[%clk 0:02:11.2]} 13... Bg7 {[%clk 0:01:34.4]} 14.
exd6 {[%clk 0:02:08.6]} 14... cxd6 {[%clk 0:01:36.3]} 15. d5 {[%clk 0:02:03.5]}
15... Ne5 {[%clk 0:01:11.7]} 16. dxe6 {[%clk 0:02:01.9]} 16... Bxe6 {[%clk
0:01:11.7]} 17. Bb5+ {[%clk 0:02:02.7]} 17... Nc6 {[%clk 0:01:03.9]} 18. Nd4
{[%clk 0:01:41.6]} 18... Rc8 {[%clk 0:00:35.1]} 19. Nxe6 {[%clk 0:01:38.8]}
19... Qxe6 {[%clk 0:00:37]} 20. Bd2 {[%clk 0:01:38.8]} 20... O-O {[%clk
0:00:33]} 21. Bd3 {[%clk 0:01:39.6]} 21... Nd4 {[%clk 0:00:20]} 22. Re1 {[%clk
0:01:33.7]} 22... Rc5 {[%clk 0:00:19.8]} 23. Qh4 {[%clk 0:01:13.3]} 23... Re5
{[%clk 0:00:20.9]} 24. Rh1 {[%clk 0:01:06.9]} 24... Nf5 {[%clk 0:00:19.7]} 25.
Qf4 {[%clk 0:01:01.7]} 25... d5 {[%clk 0:00:11]} 26. Ne2 {[%clk 0:00:44.1]}
26... d4 {[%clk 0:00:08.7]} 27. Ng3 {[%clk 0:00:30.3]} 27... Nxg3 {[%clk
0:00:09.4]} 28. Qxg3 {[%clk 0:00:31.7]} 28... Kh8 {[%clk 0:00:09.7]} 29. Kb1
{[%clk 0:00:30.5]} 29... Re8 {[%clk 0:00:07.1]} 30. a3 {[%clk 0:00:31.2]} 30...
a5 {[%clk 0:00:07.7]} 31. Bf4 {[%clk 0:00:26.9]} 31... Rc5 {[%clk 0:00:06.8]}
32. Bc1 {[%clk 0:00:26.3]} 32... b5 {[%clk 0:00:05.5]} 33. Qh4 {[%clk
0:00:21.5]} 33... b4 {[%clk 0:00:06.2]} 34. Bxh6 {[%clk 0:00:22.4]} 34... Bxh6
{[%clk 0:00:05.4]} 35. Qxh6+ {[%clk 0:00:24.3]} 35... Qxh6 {[%clk 0:00:07.3]}
36. Rxh6+ {[%clk 0:00:25.2]} 36... Kg7 {[%clk 0:00:09]} 37. Ra6 {[%clk 0:00:26]}
37... bxa3 {[%clk 0:00:06.5]} 38. b3 {[%clk 0:00:27.4]} 38... Re1+ {[%clk
0:00:04.6]} 39. Ka2 {[%clk 0:00:28.5]} 39... Rg1 {[%clk 0:00:06.5]} 40. Be4
{[%clk 0:00:24.4]} 40... Rf1 {[%clk 0:00:06]} 41. f3 {[%clk 0:00:24]} 41... Rf2
{[%clk 0:00:06.7]} 42. g4 {[%clk 0:00:25.3]} 42... d3 {[%clk 0:00:08.3]} 43.
Bxd3 {[%clk 0:00:26.2]} 43... Rxf3 {[%clk 0:00:09.5]} 44. Bf5 {[%clk 0:00:27.3]}
44... Rf4 {[%clk 0:00:07.1]} 45. Kxa3 {[%clk 0:00:28.1]} 45... Rd4 {[%clk
0:00:08.3]} 46. c4 {[%clk 0:00:29.1]} 46... Rd1 {[%clk 0:00:09.4]} 47. Rb6
{[%clk 0:00:30]} 47... Re5 {[%clk 0:00:06.2]} 48. Rb5 {[%clk 0:00:27.2]} 48...
Kf6 {[%clk 0:00:05.1]} 49. Rxe5 {[%clk 0:00:25.8]} 49... Kxe5 {[%clk 0:00:07]}
50. Ka4 {[%clk 0:00:27.7]} 50... Kd4 {[%clk 0:00:03.9]} 51. Kxa5 {[%clk
0:00:27.9]} 51... Kc5 {[%clk 0:00:05.5]} 52. Ka6 {[%clk 0:00:20.1]} 52... Rd2
{[%clk 0:00:06.1]} 53. Kb7 {[%clk 0:00:20.8]} 53... Rb2 {[%clk 0:00:05.9]} 54.
Kc7 {[%clk 0:00:22.1]} 54... Rxb3 {[%clk 0:00:06.8]} 55. Kd7 {[%clk 0:00:23.1]}
55... Rb7+ {[%clk 0:00:05.8]} 56. Ke8 {[%clk 0:00:20.9]} 56... f6 {[%clk
0:00:06.1]} 57. Be6 {[%clk 0:00:20.5]} 57... Kd6 {[%clk 0:00:06.2]} 58. Bd5
{[%clk 0:00:21.5]} 58... Rg7 {[%clk 0:00:07.3]} 59. Bf3 {[%clk 0:00:21.6]} 59...
Rc7 {[%clk 0:00:08.1]} 60. Bd5 {[%clk 0:00:22.3]} 60... Ke5 {[%clk 0:00:09.5]}
61. Kd8 {[%clk 0:00:22.3]} 61... Rg7 {[%clk 0:00:10.3]} 62. Bf3 {[%clk
0:00:22.9]} 62... Kd4 {[%clk 0:00:11.7]} 63. Be2 {[%clk 0:00:23.3]} 63... Ra7
{[%clk 0:00:11]} 64. Ke8 {[%clk 0:00:20.2]} 64... Rb7 {[%clk 0:00:12.3]} 65. Bf1
{[%clk 0:00:19.6]} 65... Rc7 {[%clk 0:00:09.6]} 66. Be2 {[%clk 0:00:20.6]} 66...
Ke5 {[%clk 0:00:10.3]} 67. Kd8 {[%clk 0:00:21.3]} 67... Ra7 {[%clk 0:00:10.1]}
68. Bd3 {[%clk 0:00:21.5]} 68... Kd4 {[%clk 0:00:10.2]} 69. Be2 {[%clk
0:00:22.6]} 69... Ra2 {[%clk 0:00:09.6]} 70. Bf1 {[%clk 0:00:23.4]} 70... Rf2
{[%clk 0:00:10]} 71. Bh3 {[%clk 0:00:24.5]} 71... Kxc4 {[%clk 0:00:09.4]} 72.
Ke7 {[%clk 0:00:25.7]} 72... Kd5 {[%clk 0:00:10.8]} 73. Kf7 {[%clk 0:00:26.8]}
73... Ke5 {[%clk 0:00:11.9]} 74. Kg6 {[%clk 0:00:28]} 74... Rf3 {[%clk 0:00:13]}
0-1

[Event "*** Titled Tuesday Blitz"]
[Site "Chess.com"]
[Date "2019.10.01"]
[Round "2"]
[White "PaulfromSPb"]
[Black "Bucefal_M"]
[Result "1-0"]
[WhiteElo "2670"]
[BlackElo "2279"]
[TimeControl "180+2"]
[EndTime "13:25:48 PDT"]
[Termination "PaulfromSPb won by resignation"]

1. e4 {[%clk 0:03:01.9]} 1... c6 {[%clk 0:02:58.4]} 2. Nf3 {[%clk 0:02:53.5]}
2... d5 {[%clk 0:02:59.4]} 3. Nc3 {[%clk 0:02:54.4]} 3... Bg4 {[%clk 0:03:00.4]}
4. h3 {[%clk 0:02:54.2]} 4... Bxf3 {[%clk 0:03:01.6]} 5. Qxf3 {[%clk 0:02:56.1]}
5... e6 {[%clk 0:03:02.7]} 6. g4 {[%clk 0:02:56.6]} 6... Nf6 {[%clk 0:02:57.1]}
7. Bg2 {[%clk 0:02:54.3]} 7... dxe4 {[%clk 0:02:37.5]} 8. Nxe4 {[%clk
0:02:54.3]} 8... Nxe4 {[%clk 0:02:38.7]} 9. Qxe4 {[%clk 0:02:56.2]} 9... Qd5
{[%clk 0:02:36.8]} 10. d3 {[%clk 0:02:45.1]} 10... Qxe4+ {[%clk 0:02:27.6]} 11.
dxe4 {[%clk 0:02:45.8]} 11... e5 {[%clk 0:02:10.8]} 12. f4 {[%clk 0:02:39.1]}
12... exf4 {[%clk 0:02:03]} 13. Bxf4 {[%clk 0:02:41]} 13... Nd7 {[%clk
0:02:04.1]} 14. O-O-O {[%clk 0:02:39.3]} 14... f6 {[%clk 0:02:04.1]} 15. e5
{[%clk 0:02:31.7]} 15... Nxe5 {[%clk 0:01:52.7]} 16. Bxe5 {[%clk 0:02:28.7]}
16... fxe5 {[%clk 0:01:52.5]} 17. Rhe1 {[%clk 0:02:30.6]} 17... Rd8 {[%clk
0:01:38]} 18. Rxe5+ {[%clk 0:02:27.4]} 18... Be7 {[%clk 0:01:39.3]} 19. Rde1
{[%clk 0:02:16.3]} 19... Rd7 {[%clk 0:01:40.7]} 20. Bf1 {[%clk 0:02:11.6]} 20...
Kd8 {[%clk 0:01:39.9]} 21. Bd3 {[%clk 0:02:08.2]} 21... Bf6 {[%clk 0:01:34.7]}
22. R5e2 {[%clk 0:02:05.6]} 22... h6 {[%clk 0:01:21.4]} 23. Bf5 {[%clk
0:02:05.4]} 23... Rd6 {[%clk 0:01:22.4]} 24. c3 {[%clk 0:02:02.7]} 24... Kc7
{[%clk 0:01:21.7]} 25. Kc2 {[%clk 0:01:58.9]} 25... Rhd8 {[%clk 0:01:22.3]} 26.
a4 {[%clk 0:01:59.9]} 26... Bg5 {[%clk 0:01:23]} 27. Kb3 {[%clk 0:01:59.8]}
27... a5 {[%clk 0:01:23.2]} 28. Re5 {[%clk 0:01:59.9]} 28... Kb6 {[%clk
0:01:21.6]} 29. R1e2 {[%clk 0:01:48.2]} 29... Rd2 {[%clk 0:01:19.4]} 30. Rxd2
{[%clk 0:01:45.7]} 30... Rxd2 {[%clk 0:01:19.7]} 31. Re8 {[%clk 0:01:25.7]}
31... Rh2 {[%clk 0:01:13.3]} 32. Rg8 {[%clk 0:01:25.7]} 32... Bc1 {[%clk
0:00:42.9]} 33. Bc2 {[%clk 0:01:26.2]} 33... Rxh3 {[%clk 0:00:44.2]} 34. Rxg7
{[%clk 0:01:26.2]} 34... Bg5 {[%clk 0:00:44.4]} 35. Bf5 {[%clk 0:01:25.7]} 35...
Re3 {[%clk 0:00:45.6]} 36. Kc4 {[%clk 0:01:22.2]} 36... Re7 {[%clk 0:00:46.2]}
37. Rg6 {[%clk 0:01:22]} 37... Rf7 {[%clk 0:00:46.5]} 38. b4 {[%clk 0:01:21.1]}
38... axb4 {[%clk 0:00:45.6]} 39. cxb4 {[%clk 0:01:22]} 39... Re7 {[%clk
0:00:47]} 40. a5+ {[%clk 0:01:21.6]} 40... Ka7 {[%clk 0:00:48.1]} 41. Rg8 {[%clk
0:01:21.6]} 41... Bd2 {[%clk 0:00:48.1]} 42. Rd8 {[%clk 0:01:20.3]} 42... Be3
{[%clk 0:00:48.9]} 43. Rd3 {[%clk 0:01:18.6]} 43... Bg5 {[%clk 0:00:49.5]} 44.
Rd4 {[%clk 0:01:16]} 44... Be3 {[%clk 0:00:46.9]} 45. Rd6 {[%clk 0:01:16.6]}
45... Bg5 {[%clk 0:00:47.4]} 46. Rg6 {[%clk 0:01:13.8]} 46... Rf7 {[%clk
0:00:46.1]} 47. Kb3 {[%clk 0:01:12.5]} 47... Re7 {[%clk 0:00:47.2]} 48. Ka4
{[%clk 0:01:13.1]} 48... Rf7 {[%clk 0:00:48.1]} 49. b5 {[%clk 0:01:11.2]} 49...
cxb5+ {[%clk 0:00:47.1]} 50. Kxb5 {[%clk 0:01:12.2]} 50... Re7 {[%clk
0:00:48.2]} 51. Be6 {[%clk 0:01:12.5]} 51... Be3 {[%clk 0:00:45.7]} 52. Bd5
{[%clk 0:01:11.8]} 52... Bg5 {[%clk 0:00:41.1]} 53. a6 {[%clk 0:01:07.3]} 53...
bxa6+ {[%clk 0:00:35.4]} 54. Rxa6+ {[%clk 0:01:07.1]} 54... Kb8 {[%clk
0:00:36.3]} 55. Kc6 {[%clk 0:01:02.6]} 55... Ra7 {[%clk 0:00:26.3]} 56. Rb6+
{[%clk 0:01:02]} 56... Kc8 {[%clk 0:00:27.7]} 57. Kd6 {[%clk 0:00:47.5]} 57...
Bf4+ {[%clk 0:00:19.4]} 58. Ke6 {[%clk 0:00:47.4]} 58... Ra1 {[%clk 0:00:19.3]}
59. Rc6+ {[%clk 0:00:41.2]} 59... Kd8 {[%clk 0:00:19.7]} 60. Kf6 {[%clk
0:00:36.7]} 60... Re1 {[%clk 0:00:20.5]} 61. Be6 {[%clk 0:00:36.3]} 61... Bg5+
{[%clk 0:00:21.5]} 62. Kf7 {[%clk 0:00:35.7]} 62... Rc1 {[%clk 0:00:20]} 63.
Rd6+ {[%clk 0:00:29.9]} 63... Kc7 {[%clk 0:00:21.4]} 64. Rd5 {[%clk 0:00:31]}
64... Kc6 {[%clk 0:00:21.8]} 65. Ra5 {[%clk 0:00:27.8]} 65... Rf1+ {[%clk
0:00:22.6]} 66. Bf5 {[%clk 0:00:28.1]} 66... Kb6 {[%clk 0:00:23.7]} 67. Re5
{[%clk 0:00:28.2]} 67... Kc7 {[%clk 0:00:24.2]} 68. Ke6 {[%clk 0:00:28.2]} 68...
Rf3 {[%clk 0:00:24.1]} 69. Rc5+ {[%clk 0:00:28.7]} 69... Kb6 {[%clk 0:00:25.3]}
70. Rc2 {[%clk 0:00:28.9]} 70... Re3+ {[%clk 0:00:26.3]} 71. Kd5 {[%clk
0:00:29.6]} 71... Re1 {[%clk 0:00:26.3]} 72. Rb2+ {[%clk 0:00:30.3]} 72... Kc7
{[%clk 0:00:27.7]} 73. Rc2+ {[%clk 0:00:27.5]} 73... Kb6 {[%clk 0:00:28.9]} 74.
Rc6+ {[%clk 0:00:28.6]} 74... Kb5 {[%clk 0:00:28.1]} 75. Rc8 {[%clk 0:00:27]}
75... Kb6 {[%clk 0:00:29]} 76. Be4 {[%clk 0:00:22.1]} 76... Rd1+ {[%clk
0:00:27.3]} 77. Ke5 {[%clk 0:00:23]} 77... Re1 {[%clk 0:00:26.6]} 78. Rb8+
{[%clk 0:00:23.3]} 78... Kc5 {[%clk 0:00:27.1]} 79. Rc8+ {[%clk 0:00:24.4]}
79... Kb6 {[%clk 0:00:28.4]} 80. Rc4 {[%clk 0:00:23.8]} 80... Rd1 {[%clk
0:00:26.2]} 81. Bd5 {[%clk 0:00:23.3]} 81... Re1+ {[%clk 0:00:25]} 82. Kd6
{[%clk 0:00:23.7]} 82... Bf4+ {[%clk 0:00:26.1]} 83. Rxf4 {[%clk 0:00:23.7]} 1-0